bitfinex/quotes_ETHUSD_20240709
["timestamp","ask_amount","ask_price","bid_price","bid_amount"]
[1720543972193,6.40664062,3078.5,3078.4,9.74532]
[1720543972400,6.40664062,3078.5,3078.4,15.32232]
[1720543972583,6.40664062,3078.5,3078.4,16.854552]
[1720543973600,6.40664062,3078.5,3078.4,13.606112]
[1720543975079,6.40664062,3078.5,3078.4,16.854552]
[1720543976766,6.40664062,3078.5,3078.4,13.606112]
[1720543976965,6.40664062,3078.5,3078.4,12.07388]
[1720543977783,0.68113522,3078.7,3078.6,3.24822]
[1720543977969,0.76594039,3078.7,3078.6,3.24822]
[1720543978366,2.24985796,3078.7,3078.6,3.24822]
[1720543978804,2.24951006,3078.7,3078.6,3.24822]
[1720543979314,1.48391716,3078.7,3078.6,3.24822]
[1720543980088,0.68078777,3078.8,3078.6,3.24822]
[1720543980387,1.105982,3078.7,3078.5,3.24827]
[1720543980583,0.68093116,3078.7,3078.6,3.24822]
[1720543980828,0.76573313,3078.7,3078.6,3.24822]
[1720543981127,0.76573313,3078.7,3078.6,7.703803]
[1720543981339,0.68093116,3078.9,3078.6,1.207363]
[1720543981484,8.57148894,3079.0,3078.9,3.24791]
[1720543981686,7.97535013,3079.0,3078.9,5.82491]
[1720543981915,7.9753499,3079.0,3078.9,9.07282]
[1720543982331,8.65628435,3079.0,3078.9,9.07282]
[1720543982539,7.89055778,3079.0,3078.9,9.07282]
[1720543982997,8.65628192,3079.0,3078.9,5.82491]
[1720543983334,8.65628192,3079.0,3078.4,3.0]
[1720543983335,1.48391716,3078.6,3078.5,5.82527]
[1720543983633,1.48391716,3078.6,3078.5,9.49651]
[1720543983784,1.48391716,3078.6,3078.5,10.746161]
[1720543983985,1.48391716,3078.8,3078.5,6.826651]
[1720543984237,1.48391716,3078.8,3078.5,5.577]
[1720543984813,7.89055778,3079.0,3078.9,3.24791]
[1720543985014,7.89055778,3079.0,3078.9,9.07282]
[1720543985382,0.68059251,3079.2,3079.1,3.2477]
[1720543985608,1.56870684,3079.2,3079.1,3.2477]
[1720543986035,1.48391716,3079.2,3079.1,6.4954]
[1720543986389,1.48391716,3079.2,3079.1,3.2477]
[1720543986927,1.48391716,3079.2,3079.1,6.4954]
[1720543987515,1.48391716,3079.2,3079.1,4.23118676]
[1720543987727,1.48391716,3079.2,3079.1,7.47888676]
[1720543988027,1.48391716,3079.2,3079.1,3.2477]
[1720543988196,1.56870691,3079.2,3079.1,3.2477]
[1720543988401,1.48391716,3079.2,3079.1,3.2477]
[1720543988633,1.56870686,3079.2,3079.1,3.2477]
[1720543988832,1.48391716,3079.0,3078.9,5.8249]
[1720543988987,2.24920453,3079.0,3078.9,2.577]
[1720543989330,1.56870686,3079.0,3078.9,2.577]
[1720543989531,2.24935103,3079.0,3078.9,5.82491]
[1720543990091,2.24935103,3079.0,3078.9,2.577]
[1720543990292,1.48391716,3078.8,3078.6,3.24815]
[1720543990493,0.08480234,3078.7,3078.6,3.24815]
[1720543990693,0.76561683,3078.7,3078.6,3.24815]
[1720543990930,0.08480234,3078.7,3078.6,3.24815]
[1720543991248,2.16473165,3078.8,3078.7,6.49624]
[1720543991386,2.16473165,3078.8,3078.7,3.24812]
[1720543991387,2.24953287,3078.8,3078.7,3.24812]
[1720543992014,1.48391716,3078.6,3078.5,5.82528]
[1720543992226,1.48391716,3078.2,3078.1,9.07442]
[1720543992431,2.16491825,3078.4,3078.1,2.577]
[1720543992590,0.76581536,3078.3,3078.1,2.577]
[1720543992787,1.48391716,3078.2,3078.1,5.82573]
[1720543993037,1.48391716,3078.2,3078.1,6.733188]
[1720543993331,0.68100109,3078.4,3078.2,3.2486]
[1720543993544,0.68100109,3078.4,3078.3,3.24854]
[1720543993721,0.08481006,3078.4,3078.3,4.2467028]
[1720543993938,1.48391716,3078.4,3078.3,4.2467028]
[1720543994213,2.24976402,3078.4,3078.3,3.24854]
[1720543994795,2.24976402,3078.4,3078.1,5.82574]
[1720543994992,0.76584686,3078.3,3078.2,3.0]
[1720543995836,1.48391716,3078.2,3078.1,2.577]
[1720543996136,1.48391716,3077.9,3077.7,5.82617]
[1720543996295,0.76602881,3077.8,3077.7,2.577]
[1720543996644,0.76602881,3077.8,3076.7,0.907765]
[1720543996645,1.10637674,3077.8,3077.3,5.82654]
[1720543996802,1.48391716,3077.4,3077.3,5.82654]
[1720543997555,1.48391716,3077.4,3077.3,2.577]
[1720543997741,0.68128723,3077.5,3077.4,3.24949]
[1720543997889,0.68122207,3077.6,3077.4,3.24949]
[1720543998092,1.3620677,3077.9,3077.4,3.24949]
[1720543998093,1.48391716,3077.5,3077.4,3.24949]
[1720543998506,0.68122207,3077.6,3077.3,2.577]
[1720543998693,0.76606062,3077.5,3077.3,5.82659]
[1720543998908,0.68122207,3077.7,3077.4,3.24949]
[1720543999108,0.68122207,3077.8,3077.4,3.24949]
[1720543999352,1.02193084,3077.9,3077.4,3.24949]
[1720543999353,0.76605328,3077.7,3077.4,3.24949]
[1720543999533,0.68122207,3077.7,3077.4,3.24949]
[1720543999915,1.48391716,3077.5,3077.4,3.24949]
[1720544000113,1.48391716,3077.5,3077.4,6.24949]
[1720544001273,1.48391716,3077.5,3076.7,2.577]
[1720544001274,1.48391716,3076.8,3076.7,2.577]
[1720544001755,1.48391716,3076.8,3076.5,3.25038]
[1720544001756,1.48391716,3076.8,3076.5,6.50073]
[1720544001973,2.16482993,3076.8,3076.4,3.25054]
[1720544002134,1.48391716,3076.5,3076.4,3.25054]
[1720544003666,1.48391716,3076.7,3076.5,3.25036]
[1720544005259,1.48391716,3076.7,3076.6,3.25034]
[1720544005469,0.68091277,3077.2,3076.7,3.25017]
[1720544005470,1.48391716,3077.0,3076.7,3.25017]
[1720544005626,1.48391716,3076.9,3076.8,2.577]
[1720544007469,1.48391716,3076.9,3076.5,3.25034]
[1720544007763,1.48391716,3076.6,3076.5,3.25034]
[1720544008465,1.48391716,3076.8,3076.6,3.25026]
[1720544008676,1.48391716,3076.8,3076.7,3.575256]
[1720544008872,1.48391716,3076.8,3076.7,3.25023]
[1720544009079,6.40664062,3077.3,3076.7,3.25023]
[1720544009237,6.40664062,3077.3,3076.5,3.25035]
[1720544009436,1.48391716,3076.6,3076.5,3.25044]
[1720544011076,1.48391716,3076.6,3076.1,0.53194]
[1720544011077,1.48391716,3076.2,3076.1,3.78275]
[1720544011261,1.48391716,3076.2,3076.1,3.25081]
[1720544011571,1.48391716,3076.2,3076.1,6.25081]
[1720544012732,1.48391716,3076.2,3076.1,9.50167]
[1720544013049,1.48391716,3076.4,3076.3,3.25065]
[1720544013247,1.48391716,3077.0,3076.4,3.25051]
[1720544013548,1.48391716,3077.0,3076.4,2.577]
[1720544013759,1.48391716,3077.0,3076.6,3.25025]
[1720544014267,1.48391716,3077.0,3076.7,3.2502]
[1720544014833,1.48391716,3076.8,3076.6,3.25028]
[1720544015052,6.40664062,3077.3,3076.8,3.25012]
[1720544015251,6.40664062,3077.3,3076.8,5.82712]
[1720544015252,1.48391716,3077.0,3076.8,5.82712]
[1720544015455,6.40664062,3077.3,3077.1,3.24981]
[1720544015857,1.48391716,3077.0,3076.9,6.832642]
[1720544016073,1.48391716,3077.0,3076.9,6.24993]
[1720544016982,1.48391716,3077.0,3076.9,3.0]
[1720544017959,1.48391716,3077.0,3076.9,6.25002]
[1720544018687,1.48391716,3077.0,3076.9,3.0]
[1720544020669,1.48391716,3077.0,3076.8,6.25012]
[1720544021444,1.48391716,3077.0,3076.9,3.25002]
[1720544021764,1.48391716,3077.0,3076.9,6.25002]
[1720544022783,6.40664062,3077.3,3077.1,3.24976]
[1720544023083,6.40664062,3077.3,3077.2,3.2497]
[1720544023393,6.40664062,3077.3,3077.2,9.0764]
[1720544023966,6.40664062,3077.3,3077.2,5.8267]
[1720544024268,1.48391716,3077.2,3076.9,6.25]
[1720544024488,1.48391716,3077.0,3076.9,6.25]
[1720544024664,1.48391716,3077.2,3077.0,3.24986]
[1720544024853,1.48391716,3077.2,3077.0,3.24984]
[1720544025461,1.48391716,3077.2,3076.9,3.0]
[1720544025896,1.48391716,3077.0,3076.9,3.0]
[1720544026370,1.48391716,3077.0,3076.9,6.25002]
[1720544030760,1.48391716,3077.2,3076.9,6.25002]
[1720544031604,1.48391716,3077.0,3076.9,6.25002]
[1720544032875,1.48391716,3077.2,3076.9,6.25002]
[1720544033498,1.48391716,3077.0,3076.9,6.25002]
[1720544033661,1.48391716,3077.2,3076.9,6.25002]
[1720544033865,1.48391716,3077.0,3076.9,6.25002]
[1720544034669,6.40664062,3077.3,3076.9,6.25002]
[1720544034864,1.12579478,3077.2,3076.9,6.25002]
[1720544035064,1.48391716,3077.2,3076.9,6.25002]
[1720544035264,1.48391716,3077.0,3076.9,6.25002]
[1720544037310,1.48391716,3076.6,3076.2,3.2507]
[1720544037480,2.54461448,3077.0,3076.2,3.2507]
[1720544037481,1.48391716,3076.3,3076.2,3.2507]
[1720544038814,1.48391716,3076.3,3076.2,6.2507]
[1720544039200,1.48391716,3076.3,3076.2,3.2507]
[1720544039395,1.48391716,3076.3,3076.1,2.577]
[1720544039621,1.48391716,3076.0,3075.9,3.25099]
[1720544039974,1.48391716,3076.2,3075.9,3.25099]
[1720544040205,1.48391716,3076.2,3076.1,3.25086]
[1720544040412,1.56879171,3076.2,3076.1,5.82786]
[1720544040715,2.24895442,3076.2,3076.1,5.82786]
[1720544040874,0.68016254,3076.3,3076.2,3.25076]
[1720544041079,2.1640797,3076.4,3076.2,6.187346]
[1720544041275,0.76503143,3076.3,3076.2,9.438106]
[1720544041513,1.48391716,3076.4,3076.3,3.25065]
[1720544041720,1.48391716,3076.2,3076.1,2.577]
[1720544041876,1.48391716,3076.2,3076.1,5.82786]
[1720544042082,1.48391716,3076.2,3076.1,6.735733]
[1720544042799,0.68016254,3076.5,3076.1,3.484873]
[1720544042998,0.68016254,3076.6,3076.5,8.90728]
[1720544043337,2.24894024,3076.6,3076.5,5.82744]
[1720544043990,2.987596,3076.6,3076.5,2.577]
[1720544044198,4.00783982,3076.6,3076.5,2.577]
[1720544044377,4.00783982,3076.6,3076.4,3.25052]
[1720544044378,1.48391716,3076.5,3076.4,3.25052]
[1720544044607,1.48391716,3076.5,3076.4,6.25052]
[1720544044608,2.24943362,3076.5,3076.4,6.25052]
[1720544044808,1.5687777,3076.5,3076.4,6.25052]
[1720544045007,2.98763601,3076.5,3076.4,3.25052]
[1720544045215,1.48391716,3076.3,3076.2,3.2507]
[1720544045518,2.24962929,3076.3,3076.2,6.2507]
[1720544046025,1.48391716,3076.3,3076.2,6.2507]
[1720544046197,1.48391716,3076.3,3076.2,7.458556]
[1720544046198,2.24962924,3076.3,3076.2,7.458556]
[1720544047095,2.24962924,3076.3,3076.1,5.82786]
[1720544047096,1.56878706,3076.3,3076.1,2.577]
[1720544047300,1.10613318,3076.2,3076.1,2.577]
[1720544047603,1.48391716,3076.0,3075.8,3.25112]
[1720544047794,0.76641856,3075.9,3075.8,3.25112]
[1720544048124,0.76632472,3075.9,3075.8,3.25112]
[1720544048620,1.48391716,3075.8,3075.7,2.577]
[1720544048916,2.25018968,3075.8,3075.7,2.577]
[1720544049216,2.25018968,3075.8,3075.7,5.577]
[1720544049418,2.25018968,3075.8,3075.7,2.577]
[1720544049619,1.56878706,3075.8,3075.7,2.577]
[1720544049830,2.249959,3075.8,3075.7,2.577]
[1720544050025,1.56878706,3075.8,3075.7,2.577]
[1720544050327,1.48391716,3075.8,3075.7,2.577]
[1720544050518,1.56879882,3075.8,3075.7,2.577]
[1720544050705,1.56879882,3075.8,3075.7,5.82829]
[1720544051298,1.48391716,3075.8,3075.7,5.82829]
[1720544051500,1.56879939,3075.8,3075.7,5.82829]
[1720544051685,2.24997133,3075.8,3075.7,5.82829]
[1720544052021,1.48391716,3075.8,3075.7,5.82829]
[1720544052231,0.68117194,3076.0,3075.9,6.50216]
[1720544052534,0.68117194,3076.2,3076.1,3.25086]
[1720544052686,6.40664062,3076.3,3076.2,3.25076]
[1720544052887,6.40664062,3076.3,3076.2,6.50152]
[1720544053125,6.40664062,3076.8,3076.7,3.25023]
[1720544053417,1.48391716,3076.9,3076.8,6.25013]
[1720544054130,1.43391716,3076.9,3076.8,6.25013]
[1720544054282,1.43391716,3076.9,3076.8,9.50026]
[1720544054486,1.43391716,3076.9,3076.8,12.9709883]
[1720544054930,1.43391716,3076.9,3076.8,10.4827883]
[1720544055157,1.43391716,3076.9,3076.8,7.2326583]
[1720544055513,1.43391716,3076.9,3076.8,3.9825283]
[1720544055682,1.43391716,3076.9,3076.8,6.25013]
[1720544056492,1.43391716,3076.9,3076.8,9.50026]
[1720544057322,0.68074038,3077.2,3077.1,6.49962]
[1720544057488,6.40664062,3077.3,3077.2,9.7491]
[1720544057836,6.40664062,3077.3,3077.2,21.064]
[1720544058046,6.40664062,3077.8,3077.2,13.7213]
[1720544058191,0.68074038,3077.9,3077.4,3.24945]
[1720544058392,2.11465754,3078.0,3077.3,3.0]
[1720544058588,1.43391716,3078.0,3077.9,6.49792]
[1720544058789,1.43391716,3078.0,3077.9,3.24896]
[1720544059036,2.11465754,3078.0,3077.9,3.24896]
[1720544059236,1.43391716,3078.0,3077.9,3.24896]
[1720544059437,1.43391716,3077.7,3077.6,6.4985]
[1720544059732,1.43391716,3077.7,3077.6,9.4985]
[1720544059929,1.43391716,3077.7,3077.6,10.591499]
[1720544061147,1.43391716,3077.9,3077.8,3.24907]
[1720544061458,1.43391716,3077.9,3077.8,9.49814]
[1720544061618,1.43391716,3077.9,3077.8,10.8572539]
[1720544062221,1.43391716,3077.9,3077.8,7.6081839]
[1720544062416,1.43391716,3077.9,3077.8,9.49814]
[1720544062622,1.43391716,3077.9,3077.8,6.24907]
[1720544063368,1.43391716,3077.9,3077.8,3.0]
[1720544063550,1.43391716,3077.9,3077.7,6.24915]
[1720544064149,1.43391716,3077.9,3077.8,3.24907]
[1720544064362,1.43391716,3077.9,3077.8,6.24907]
[1720544065966,1.43391716,3077.9,3077.8,9.49814]
[1720544066134,7.84055778,3078.1,3078.0,6.49772]
[1720544066535,7.84055778,3078.1,3078.0,9.49772]
[1720544067473,6.40664062,3078.1,3078.0,11.88512]
[1720544067623,6.40664062,3078.1,3078.0,16.4174734]
[1720544068760,1.43391716,3078.8,3078.7,6.49624]
[1720544069255,1.43391716,3078.8,3078.7,9.49624]
[1720544069667,1.43391716,3078.8,3078.7,3.24812]
[1720544071244,1.43391716,3078.8,3078.7,7.145873]
[1720544071563,1.43391716,3078.8,3078.7,6.49624]
[1720544071878,1.43391716,3078.8,3078.7,3.24812]
[1720544072229,1.43391716,3078.8,3078.7,6.49624]
[1720544073261,1.43391716,3078.8,3078.7,9.49624]
[1720544073562,1.43391716,3079.0,3078.9,6.49582]
[1720544074064,1.43391716,3079.0,3078.9,9.49582]
[1720544078567,0.1142342,3079.9,3078.9,3.0]
[1720544078568,1.43391716,3079.6,3078.9,3.0]
[1720544078725,1.43391716,3079.5,3079.4,3.24735]
[1720544079864,1.43391716,3079.5,3079.4,6.49473]
[1720544080074,1.43391716,3079.5,3079.4,9.49473]
[1720544080572,1.43391716,3079.5,3079.4,6.24735]
[1720544082762,1.43391716,3079.5,3079.4,3.0]
[1720544082966,1.43391716,3079.5,3079.3,6.24749]
[1720544087643,1.43391716,3079.5,3079.3,3.0]
[1720544088071,1.43391716,3078.7,3078.5,3.24825]
[1720544088294,2.2145,3079.4,3078.5,3.24832]
[1720544088295,6.40664062,3079.2,3078.5,3.24832]
[1720544088468,6.40664062,3079.2,3079.0,3.2478]
[1720544088647,6.40664062,3079.2,3079.0,3.24773]
[1720544088847,6.40664062,3079.2,3079.0,6.49546]
[1720544089255,1.43391716,3079.1,3079.0,3.24773]
[1720544089578,6.40664062,3079.2,3078.8,3.24794]
[1720544089579,1.43391716,3078.9,3078.8,3.24794]
[1720544089782,1.43391716,3078.9,3078.7,3.2481]
[1720544090202,1.43391716,3078.7,3078.6,3.24822]
[1720544090479,6.40664062,3079.2,3078.7,3.2481]
[1720544090677,1.43391716,3078.8,3078.7,3.2481]
[1720544090981,1.43391716,3078.8,3078.7,6.2481]
[1720544091146,1.43391716,3078.8,3078.7,6.897725]
[1720544091668,1.43391716,3079.0,3078.9,3.24791]
[1720544092052,1.43391716,3079.0,3078.7,6.24805]
[1720544092257,6.40664062,3079.2,3078.8,3.24796]
[1720544092458,6.40664062,3079.2,3078.9,3.24791]
[1720544093165,6.40664062,3079.2,3078.7,3.0]
[1720544093166,6.40664062,3079.2,3079.1,3.2477]
[1720544093681,7.84055778,3079.2,3079.0,3.2478]
[1720544093881,1.43391716,3079.2,3079.0,3.2478]
[1720544094197,1.43391716,3079.2,3079.1,3.2477]
[1720544094352,1.43391716,3079.2,3079.0,3.24775]
[1720544095195,1.43391716,3079.2,3079.1,3.2477]
[1720544096065,1.43391716,3079.4,3079.2,3.24749]
[1720544096272,1.43391716,3079.4,3079.3,3.24749]
[1720544096455,1.43391716,3079.0,3078.8,6.12494]
[1720544096787,1.43391716,3079.0,3078.9,6.24791]
[1720544096957,1.43391716,3079.0,3078.9,9.49582]
[1720544097152,1.43391716,3079.0,3078.9,10.475402]
[1720544097481,1.43391716,3079.0,3078.9,7.227492]
[1720544097796,1.43391716,3079.0,3078.9,3.0]
[1720544098102,2.55908174,3079.0,3078.9,3.0]
[1720544098259,2.55908174,3079.0,3078.9,6.24791]
[1720544098700,1.43391716,3079.0,3078.9,6.24791]
[1720544099525,2.55908014,3079.0,3078.9,3.0]
[1720544099685,2.55908014,3079.0,3078.8,3.0]
[1720544099882,1.12519093,3078.9,3078.3,3.24847]
[1720544100087,6.06243517,3079.4,3078.0,3.24886]
[1720544100088,1.12519093,3078.8,3078.0,3.24886]
[1720544100398,1.43391716,3078.1,3077.8,2.3926]
[1720544100594,1.43391716,3078.1,3077.9,0.23926]
[1720544101420,1.43391716,3078.1,3078.0,3.24886]
[1720544101791,1.43391716,3077.9,3077.7,3.24908]
[1720544101987,1.43391716,3077.9,3077.8,3.24907]
[1720544102296,6.40664062,3078.5,3077.9,2.2583]
[1720544102495,6.40664062,3078.5,3078.1,3.24875]
[1720544102899,1.43391716,3078.2,3078.1,3.24875]
[1720544103429,1.43391716,3078.0,3077.8,3.24901]
[1720544103641,1.43391716,3078.0,3077.9,3.0]
[1720544104134,1.43391716,3078.0,3077.8,6.24907]
[1720544104428,1.43391716,3078.0,3077.8,3.0]
[1720544105513,1.43391716,3077.7,3077.6,5.82619]
[1720544105791,1.43391716,3077.7,3077.6,9.964205]
[1720544106213,1.43391716,3077.7,3077.6,7.387205]
[1720544106487,1.43391716,3077.7,3077.6,10.636485]
[1720544106726,1.43391716,3077.7,3077.6,13.213485]
[1720544107023,1.43391716,3078.0,3077.8,3.249]
[1720544107320,0.67985733,3078.3,3077.8,0.67949993]
[1720544107523,1.43391716,3078.2,3078.1,3.24865]
[1720544107726,7.08649795,3078.5,3078.1,3.24865]
[1720544107926,0.67985733,3078.4,3078.1,3.24865]
[1720544108224,0.67985733,3078.4,3078.0,3.24885]
[1720544108225,1.43391716,3078.2,3078.0,3.24885]
[1720544108614,1.43391716,3077.7,3077.6,12.07549]
[1720544108815,1.43391716,3077.7,3077.6,12.86364]
[1720544109189,1.43391716,3077.7,3077.6,9.61436]
[1720544109801,1.43391716,3077.7,3077.6,12.86364]
[1720544111627,1.43391716,3077.9,3077.8,3.24907]
[1720544111936,0.67985733,3078.3,3078.1,3.24875]
[1720544112223,0.67985733,3078.2,3078.1,3.24875]
[1720544112428,2.11377449,3078.2,3078.1,3.24875]
[1720544113007,1.43391716,3078.0,3077.9,3.24892]
[1720544113919,1.43391716,3078.0,3077.9,6.95537051]
[1720544114606,1.43391716,3078.0,3077.9,3.70641051]
[1720544114800,1.43391716,3078.0,3077.9,3.24892]
[1720544115225,1.43391716,3078.0,3077.9,6.49792]
[1720544115392,1.43391716,3078.0,3077.7,1.516814]
[1720544115593,1.43391716,3077.8,3077.7,11.015154]
[1720544115832,1.43391716,3078.0,3077.9,3.24896]
[1720544116233,2.1140628,3078.3,3078.2,3.24865]
[1720544116536,1.02021847,3078.4,3078.3,6.49708]
[1720544116537,1.43391716,3078.4,3078.3,6.49708]
[1720544117193,1.43391716,3078.8,3078.7,3.24812]
[1720544117389,1.43391716,3078.6,3078.5,3.24829]
[1720544117592,0.68014564,3078.9,3078.3,6.24846]
[1720544117593,1.43391716,3078.4,3078.3,6.24846]
[1720544118491,1.43391716,3078.0,3077.6,5.0062]
[1720544118700,1.43391716,3078.0,3077.9,6.49792]
[1720544118891,1.43391716,3078.0,3077.9,9.49792]
[1720544119191,6.40664062,3078.4,3077.9,4.249792]
[1720544119390,6.40664062,3078.7,3078.6,6.49644]
[1720544119644,1.43391716,3078.8,3078.7,6.49624]
[1720544119797,1.43391716,3078.8,3078.7,3.24812]
[1720544119995,1.43391716,3078.8,3078.6,3.24822]
[1720544120402,2.1140628,3078.8,3078.6,3.24822]
[1720544120806,1.43391716,3078.8,3078.6,3.24816]
[1720544121042,1.43391716,3078.6,3078.5,3.24833]
[1720544121611,2.1140628,3078.8,3078.6,3.24816]
[1720544121812,1.43391716,3078.4,3078.3,6.49701]
[1720544122035,1.43391716,3078.4,3078.3,6.24847]
[1720544122825,1.43391716,3078.4,3078.2,3.24865]
[1720544123008,1.43391716,3077.9,3077.8,3.24897]
[1720544123220,0.68014564,3078.5,3077.6,3.2492]
[1720544123221,1.43391716,3077.7,3077.6,3.2492]
[1720544123818,1.43391716,3077.8,3077.7,3.2491]
[1720544124019,1.43391716,3077.8,3077.5,3.24929]
[1720544124212,1.43391716,3077.6,3077.5,3.24929]
[1720544124521,1.43291716,3077.6,3077.5,3.24929]
[1720544125558,1.43291716,3077.6,3077.5,6.24929]
[1720544128332,2.11295062,3078.0,3077.7,3.24913]
[1720544128647,1.43291716,3077.8,3077.7,3.24913]
[1720544129176,2.11313483,3078.0,3077.7,3.24913]
[1720544129481,1.43291716,3077.8,3077.7,3.24913]
[1720544129934,1.43291716,3077.8,3077.7,6.4983]
[1720544130274,1.43291716,3077.8,3077.5,3.0]
[1720544130473,1.43291716,3077.7,3077.6,3.24925]
[1720544132891,1.43291716,3077.7,3077.5,3.2493]
[1720544133376,1.43291716,3077.7,3077.5,6.49861]
[1720544133531,1.43291716,3077.7,3077.6,3.0]
[1720544133532,2.11355241,3077.7,3077.6,3.0]
[1720544133735,1.43291716,3077.2,3077.1,5.59985]
[1720544133936,1.43291716,3077.2,3077.1,3.24975]
[1720544134379,2.11355241,3077.2,3077.1,3.24975]
[1720544135538,1.43291716,3077.0,3076.9,3.24992]
[1720544136037,1.43291716,3076.6,3076.5,9.07788]
[1720544136232,1.43291716,3076.6,3076.5,10.56003]
[1720544136436,1.43291716,3076.6,3076.5,13.56003]
[1720544137063,1.43291716,3076.6,3076.5,10.56003]
[1720544137263,1.43291716,3076.6,3076.5,4.73259]
[1720544137471,1.43291716,3076.6,3076.5,3.25044]
[1720544138272,1.43291716,3076.6,3076.5,6.50088]
[1720544138470,0.68063525,3077.1,3077.0,3.24991]
[1720544138671,1.02095287,3077.2,3077.1,3.24981]
[1720544138672,0.68063525,3077.2,3077.1,3.24981]
[1720544138905,1.02095287,3077.4,3077.3,3.24953]
[1720544138906,1.43291716,3077.4,3077.3,3.24953]
[1720544139606,0.3399483,3077.4,3077.3,7.149053]
[1720544139919,0.3399483,3077.4,3077.3,12.726053]
[1720544140712,0.3399483,3077.4,3077.3,18.370653]
[1720544140865,7.83955778,3077.7,3077.6,6.49856]
[1720544141059,7.83955778,3077.7,3077.6,10.473357]
[1720544142104,7.83955778,3077.7,3077.6,7.224077]
[1720544142275,7.83955778,3077.7,3077.6,6.24928]
[1720544142481,8.17951755,3077.7,3077.4,3.24939]
[1720544142805,1.43291716,3077.5,3077.4,3.24939]
[1720544143008,1.43291716,3077.5,3077.4,6.24939]
[1720544143299,1.43291716,3077.5,3077.2,3.24968]
[1720544143300,1.43291716,3077.5,3077.3,3.24955]
[1720544143507,2.11354687,3077.5,3077.3,3.24955]
[1720544144404,1.43291716,3077.5,3077.4,3.24949]
[1720544144564,1.43291716,3077.5,3077.4,6.49898]
[1720544144769,1.43291716,3077.5,3077.4,3.24949]
[1720544145802,2.11354687,3077.5,3077.4,3.24949]
[1720544146510,2.45350664,3077.7,3077.4,0.96643377]
[1720544146717,2.45350664,3077.7,3077.6,6.49856]
[1720544147603,0.33995977,3077.7,3077.6,11.98616]
[1720544148010,0.33995977,3077.7,3077.6,13.509712]
[1720544148185,8.52018749,3078.0,3077.9,6.49792]
[1720544148504,2.11354687,3078.0,3077.9,6.49792]
[1720544148704,1.43291716,3078.0,3077.9,6.49792]
[1720544148904,0.68110164,3078.0,3077.9,6.49792]
[1720544149071,0.68110164,3078.0,3077.9,7.31311161]
[1720544149268,1.43291716,3078.0,3077.9,7.31311161]
[1720544149483,0.68110164,3078.1,3078.0,6.49772]
[1720544149815,2.1140188,3078.4,3078.3,3.24854]
[1720544149976,1.43291716,3078.4,3078.3,3.24854]
[1720544150180,2.11394362,3078.4,3078.3,3.24854]
[1720544150697,2.11394362,3078.4,3078.3,6.49708]
[1720544151009,1.43291716,3078.4,3078.3,7.404488]
[1720544151311,2.11394362,3078.4,3078.3,3.24854]
[1720544152175,2.11380538,3078.4,3078.2,6.49715]
[1720544152404,0.68088822,3078.3,3078.2,3.24857]
[1720544152605,2.11380538,3078.4,3078.2,6.24857]
[1720544152874,0.68088822,3078.3,3078.2,6.24857]
[1720544154210,2.11380538,3078.4,3078.3,3.24854]
[1720544154411,1.43291716,3078.4,3078.3,3.24854]
[1720544154611,2.11380538,3078.4,3078.3,3.24854]
[1720544154979,0.68088822,3078.5,3078.2,3.0]
[1720544155183,1.02133233,3078.7,3078.5,3.24833]
[1720544155578,0.68072924,3078.6,3078.5,3.24833]
[1720544155777,2.1136464,3078.6,3078.5,3.24833]
[1720544155985,0.68072924,3078.7,3078.6,3.24822]
[1720544156317,0.68072924,3078.8,3078.7,6.49624]
[1720544156482,0.68072924,3078.9,3078.8,3.24801]
[1720544156682,2.1136464,3078.9,3078.8,6.49602]
[1720544156978,1.43291716,3078.9,3078.8,6.49602]
[1720544157222,0.68072924,3079.1,3079.0,6.4956]
[1720544157398,8.52028702,3079.2,3079.1,3.2477]
[1720544158009,7.83955778,3079.2,3079.1,3.2477]
[1720544159080,7.83955778,3079.2,3079.1,6.4954]
[1720544159286,1.43291716,3079.2,3079.1,7.14495]
[1720544159583,1.43291716,3079.5,3079.4,3.24738]
[1720544159809,1.43291716,3079.5,3079.4,6.49476]
[1720544160457,1.43291716,3079.5,3079.4,7.144236]
[1720544160595,0.68072924,3079.8,3079.7,6.49412]
[1720544160801,0.1142342,3079.9,3079.8,6.49392]
[1720544161324,0.1142342,3079.9,3079.8,3.24696]
[1720544161726,0.1142342,3079.9,3079.8,6.49392]
[1720544161915,0.1142342,3079.9,3079.8,3.24696]
[1720544162081,0.1142342,3079.9,3079.7,5.82398]
[1720544162281,0.1142342,3079.9,3079.7,3.24698]
[1720544162282,1.43291716,3079.8,3079.7,3.24698]
[1720544162687,1.43291716,3079.8,3079.7,6.24698]
[1720544164300,0.1142342,3079.9,3079.8,6.49392]
[1720544164918,20.58947579,3080.8,3080.3,5.61133]
[1720544164919,6.40664062,3080.4,3080.3,5.61133]
[1720544165098,12.2,3080.8,3080.6,3.24605]
[1720544165099,1.43291716,3080.8,3080.6,3.24605]
[1720544165290,1.43291716,3080.8,3080.5,3.24612]
[1720544165291,1.43291716,3080.8,3080.7,3.24601]
[1720544167330,1.43291716,3080.8,3080.7,7.141232]
[1720544167634,1.43291716,3081.0,3080.9,6.4916]
[1720544168226,18.60664062,3081.3,3081.1,3.24559]
[1720544168227,1.43291716,3081.2,3081.1,3.24559]
[1720544168594,1.43291716,3081.2,3081.1,6.24559]
[1720544168800,19.57,3081.6,3081.2,3.24542]
[1720544168801,1.43291716,3081.4,3081.2,3.24542]
[1720544169052,1.43291716,3081.4,3081.3,6.49076]
[1720544169212,6.40664062,3081.7,3081.3,6.49076]
[1720544169213,6.40664062,3081.7,3081.3,3.24538]
[1720544169421,6.40664062,3081.7,3081.6,6.49012]
[1720544169619,6.40664062,3081.7,3081.6,9.49012]
[1720544169930,6.40664062,3081.7,3081.6,11.345863]
[1720544170128,6.40664062,3081.7,3081.6,4.855743]
[1720544170329,6.40664062,3081.7,3081.6,3.0]
[1720544171449,6.40664062,3081.7,3081.6,6.24506]
[1720544171835,6.40664062,3081.7,3081.3,3.24531]
[1720544171836,1.43291716,3081.4,3081.3,3.24531]
[1720544172151,1.43291716,3081.6,3081.5,3.24517]
[1720544172306,1.43291716,3081.6,3081.5,6.24517]
[1720544172710,1.43291716,3081.6,3081.5,3.0]